bitfinex-derivatives/quotes_ETHF0:USTF0_20250323
["timestamp","ask_amount","ask_price","bid_price","bid_amount"]
[1742712775203,1.3277,2006.1,2006.0,6.11032658]
[1742712777205,1.3277,2006.1,2006.0,6.11041587]
[1742712778502,1.9723,2006.1,2006.0,6.11041587]
[1742712779104,1.9723,2006.1,2006.0,6.11054302]
[1742712780500,1.9723,2006.1,2006.0,4.72294302]
[1742712780701,1.9723,2006.1,2006.0,1.51514302]
[1742712781011,1.9723,2006.1,2006.0,0.99718]
[1742712781210,1.9723,2006.1,2006.0,1.5154586]
[1742712781396,2.96943,2006.1,2006.0,0.99718]
[1742712781600,1.9723,2006.1,2006.0,0.99718]
[1742712782606,2.96943,2006.1,2006.0,0.99718]
[1742712782801,1.9723,2006.1,2006.0,0.99718]
[1742712783001,2.96945,2006.1,2005.9,0.9972]
[1742712783209,1.37,2006.0,2005.9,0.9972]
[1742712783504,1.37,2006.0,2005.9,1.51542776]
[1742712783905,2.36718,2006.0,2005.9,0.51822776]
[1742712784112,2.36718,2006.0,2005.8,0.99724]
[1742712784411,2.7454,2005.9,2005.8,0.99724]
[1742712787206,2.7454,2005.9,2005.8,0.99728]
[1742712788311,3.74266,2005.9,2005.7,4.2051]
[1742712788512,1.3705,2005.8,2005.7,4.2051]
[1742712791111,1.3705,2005.8,2005.7,5.5139]
[1742712791716,1.3705,2005.8,2005.7,4.2051]
[1742712798116,1.3705,2005.8,2005.7,5.5533]
[1742712798316,2.36778,2005.8,2005.7,4.2051]
[1742712798619,1.3705,2005.8,2005.7,4.2051]
[1742712800516,1.3705,2005.8,2005.7,5.6005]
[1742712800812,1.3705,2005.8,2005.7,6.2518]
[1742712808013,1.3705,2005.8,2005.7,6.76970663]
[1742712808820,1.3705,2005.8,2005.7,6.2518]
[1742712809122,1.3705,2005.8,2005.7,6.76985158]
[1742712809319,1.3705,2005.8,2005.7,6.2518]
[1742712809617,1.3705,2005.8,2005.7,6.77005675]
[1742712810510,1.3705,2005.8,2005.7,3.56225675]
[1742712810914,1.3705,2005.8,2005.7,3.044]
[1742712811115,1.3705,2005.8,2005.7,3.56225447]
[1742712813018,1.3705,2005.8,2005.7,3.56248045]
[1742712815025,1.3705,2005.8,2005.7,3.56271001]
[1742712817024,1.3705,2005.8,2005.7,3.044]
[1742712817228,1.3705,2005.8,2005.7,3.56297104]
[1742712818233,2.36778,2005.8,2005.7,1.91437104]
[1742712818529,2.36778,2005.8,2005.7,2.91170104]
[1742712819131,2.36778,2005.8,2005.7,2.91171946]
[1742712820129,1.3705,2005.8,2005.7,1.91438946]
[1742712820424,2.36778,2005.8,2005.7,1.91438946]
[1742712820633,4.5783,2005.8,2005.3,3.2078]
[1742712820823,0.99743,2005.5,2005.4,0.51903771]
[1742712821327,0.99743,2005.5,2005.3,4.20532]
[1742712821527,1.3828,2005.4,2005.3,4.20532]
[1742712821725,1.3828,2005.4,2005.3,5.58012]
[1742712826326,1.3828,2005.4,2005.3,5.58013]
[1742712828031,2.38028,2005.4,2005.3,4.5826]
[1742712828729,1.3828,2005.4,2005.3,5.58013]
[1742712829033,2.38028,2005.4,2005.3,5.58013]
[1742712829532,1.3828,2005.4,2005.3,5.58013]
[1742712831730,1.3828,2005.4,2005.3,4.5826]
[1742712832127,2.38028,2005.4,2005.3,4.5826]
[1742712833728,2.38028,2005.4,2005.3,3.2078]
[1742712834638,0.99753,2005.3,2005.2,2.39478]
[1742712834838,3.65983,2005.3,2005.2,2.39478]
[1742712835039,3.65983,2005.3,2005.2,1.3972]
[1742712835334,3.65983,2005.3,2005.2,2.39478]
[1742712835531,2.6623,2005.3,2005.2,2.39478]
[1742712835938,3.65983,2005.3,2005.2,2.39478]
[1742712839337,3.65983,2005.3,2005.2,1.3972]
[1742712840334,3.65983,2005.3,2005.2,2.39478]
[1742712840937,3.65983,2005.3,2005.2,1.3972]
[1742712841545,3.65983,2005.3,2005.2,2.39478]
[1742712841943,3.65983,2005.3,2005.2,1.3972]
[1742712842337,3.65983,2005.3,2005.2,2.39478]
[1742712842740,2.6623,2005.3,2005.2,2.39478]
[1742712843342,3.65983,2005.3,2005.2,2.39478]
[1742712846451,2.6623,2005.3,2005.2,2.39478]
[1742712846653,1.3055,2005.3,2005.2,2.39478]
[1742712846848,2.38611,2005.6,2005.4,0.99745]
[1742712847052,1.3887,2005.6,2005.4,0.99747]
[1742712847247,0.99745,2005.5,2005.4,0.99747]
[1742712848048,0.99745,2005.5,2005.3,5.54268]
[1742712848355,0.99745,2005.5,2005.4,2.32938]
[1742712849257,2.36485,2005.5,2005.4,1.3319]
[1742712852454,2.36485,2005.5,2005.4,2.32938]
[1742712852752,0.99733,2005.7,2005.5,0.99741]
[1742712852955,1.2914,2005.6,2005.5,0.99741]
[1742712853655,4.84728,2005.8,2005.7,0.99733]
[1742712855057,6.13468,2005.8,2005.7,0.99733]
[1742712855468,6.13468,2005.8,2005.6,0.99734]
[1742712855660,1.2874,2005.7,2005.6,0.99734]
[1742712857663,1.2874,2005.7,2005.6,4.72323917]
[1742712857970,1.2874,2005.7,2005.6,4.72324363]
[1742712858169,1.2874,2005.7,2005.6,4.72322413]
[1742712858766,2.28473,2005.7,2005.6,4.20518]
[1742712858973,1.2874,2005.7,2005.6,4.20518]
[1742712869875,1.2874,2005.7,2005.6,5.50568]
[1742712872168,1.2874,2005.7,2005.6,2.29788]
[1742712872769,1.2874,2005.7,2005.6,2.98068]
[1742712873371,2.28473,2005.7,2005.6,1.3005]
[1742712874077,2.28473,2005.7,2005.5,3.2078]
[1742712874078,0.99738,2005.6,2005.5,3.2078]
[1742712874279,3.70443,2005.6,2005.4,0.99745]
[1742712874782,2.35083,2005.6,2005.5,1.366]
[1742712876683,2.35083,2005.6,2005.5,2.36343]
[1742712878783,1.3534,2005.6,2005.5,2.36343]
[1742712878985,2.35078,2005.6,2005.5,2.36343]
[1742712879185,1.3534,2005.6,2005.5,2.36343]
[1742712881885,2.35078,2005.6,2005.5,2.36343]
[1742712885588,2.35078,2005.6,2005.5,1.366]
[1742712888395,2.35078,2005.6,2005.5,2.36343]
[1742712888584,2.35078,2005.6,2005.5,1.366]
[1742712890092,2.35078,2005.6,2005.5,2.36343]
[1742712892896,2.35078,2005.6,2005.5,1.366]
[1742712893195,0.99745,2005.5,2005.3,4.8909]
[1742712893387,2.33375,2005.5,2005.4,2.35918]
[1742712894190,1.3363,2005.5,2005.4,2.35918]
[1742712897397,1.3363,2005.5,2005.4,2.87821943]
[1742712897796,1.3363,2005.5,2005.4,2.35918]
[1742712898095,1.3363,2005.5,2005.4,2.87807604]
[1742712898795,1.3363,2005.5,2005.4,2.35918]
[1742712898998,2.33373,2005.5,2005.4,1.3617]
[1742712899188,2.33373,2005.5,2005.3,6.28261]
[1742712899493,0.99743,2005.5,2005.4,1.3917]
[1742712900591,0.99748,2005.4,2005.3,3.2078]
[1742712901397,0.99748,2005.4,2005.3,4.5445]
[1742712903194,0.99748,2005.4,2005.3,5.54203]
[1742712903799,0.99747,2005.5,2005.4,0.99748]
[1742712904097,0.99747,2005.5,2005.4,1.3788]
[1742712909593,1.62877,2005.5,2005.4,1.3788]
[1742712917706,3.01967,2005.5,2005.4,1.3788]
[1742712918005,0.99753,2005.3,2005.2,0.6828]
[1742712918210,0.99753,2005.3,2005.2,1.68038]
[1742712918409,0.99753,2005.3,2005.2,0.6828]
[1742712918611,0.99758,2005.2,2005.1,4.86458831]
[1742712918814,0.99758,2005.2,2005.1,6.04430023]
[1742712919224,2.29788,2005.2,2005.1,7.32590023]
[1742712919622,2.29788,2005.2,2005.1,6.32829023]
[1742712919822,2.29788,2005.2,2005.1,5.80937831]
[1742712921216,2.29788,2005.2,2005.1,6.80700831]
[1742712921821,2.29788,2005.2,2005.1,5.80937831]
[1742712922221,2.29788,2005.2,2005.1,6.80700831]
[1742712922422,2.29788,2005.2,2005.1,5.80937831]
[1742712923015,2.29788,2005.2,2005.1,6.80700831]
[1742712923412,2.29788,2005.2,2005.1,5.80937831]
[1742712923618,2.29788,2005.2,2005.1,6.80700831]
[1742712924018,2.29788,2005.2,2005.1,2.60157831]
[1742712927729,2.29788,2005.2,2005.1,3.59920831]
[1742712928428,2.29788,2005.2,2005.1,2.60157831]
[1742712929632,2.29788,2005.2,2005.1,3.59920831]
[1742712929930,2.29788,2005.2,2005.1,2.60157831]
[1742712930230,3.79431,2005.2,2004.7,0.99782]
[1742712930434,0.99776,2004.9,2004.8,1.3516]
[1742712930625,0.99776,2004.9,2004.8,2.0379]
[1742712931228,3.05826,2004.9,2004.8,2.0379]
[1742712933033,3.05826,2004.9,2004.8,3.03568]
[1742712934833,3.05826,2004.9,2004.8,2.0379]
[1742712936338,3.05826,2004.9,2004.8,3.03568]
[1742712937337,5.2683,2004.9,2004.6,0.00747831]
[1742712937533,0.99783,2004.7,2004.6,1.00534831]
[1742712937736,0.99783,2004.7,2004.6,0.68757831]
[1742712938037,0.99783,2004.7,2004.6,1.36827831]
[1742712938339,0.99783,2004.7,2004.6,2.75347831]
[1742712939031,2.27032,2004.8,2004.6,2.75347831]
[1742712939232,2.27032,2004.8,2004.7,1.3852]
[1742712939434,0.99782,2004.8,2004.7,1.3852]
[1742712943646,0.00747831,2005.1,2004.7,4.593]
[1742712943945,0.00747831,2005.1,2004.9,0.99773]
[1742712943946,0.99769,2005.0,2004.9,0.99773]
[1742712944242,1.00514831,2005.1,2004.9,1.66143]
[1742712944444,1.00514831,2005.1,2005.0,1.3659]
[1742712944632,1.00514831,2005.1,2005.0,2.36358]
[1742712944836,1.00514831,2005.1,2005.0,1.3659]
[1742712945932,1.00514831,2005.1,2005.0,2.36358]
[1742712946338,1.00514831,2005.1,2005.0,1.3659]
[1742712946646,1.00514831,2005.1,2005.0,2.36358]
[1742712947544,1.00514831,2005.1,2005.0,1.3659]
[1742712948349,1.00514831,2005.1,2005.0,2.36358]
[1742712948551,1.00514831,2005.1,2005.0,1.3659]
[1742712950442,0.00747831,2005.1,2005.0,2.36358]
[1742712950645,0.00747831,2005.1,2005.0,5.57138]
[1742712954647,0.00747831,2005.1,2005.0,2.36358]
[1742712957945,1.39557831,2005.1,2005.0,2.36358]
[1742712958958,0.00747831,2005.1,2005.0,2.36358]
[1742712959253,0.00747831,2005.1,2005.0,2.88184367]
[1742712960059,0.00747831,2005.1,2005.0,2.88182541]
[1742712961654,0.00747831,2005.1,2005.0,2.36358]
[1742712962452,0.00747831,2005.1,2005.0,2.88174026]
[1742712963253,0.00747831,2005.1,2005.0,2.88174167]
[1742712963561,0.00747831,2005.1,2005.0,2.36358]
[1742712963858,0.00747831,2005.1,2005.0,2.88171437]
[1742712965261,0.00747831,2005.1,2005.0,2.88165806]
[1742712965463,0.00747831,2005.1,2005.0,2.36358]
[1742712965764,0.00747831,2005.1,2005.0,2.88162368]
[1742712971458,0.00747831,2005.1,2005.0,2.88201051]
[1742712976867,0.00747831,2005.1,2005.0,2.36358]
[1742712977068,0.00747831,2005.1,2005.0,2.88240004]
[1742712979170,0.00747831,2005.1,2005.0,2.8825272]
[1742712980171,0.00747831,2005.1,2005.0,3.52047373]
[1742712982666,1.3036,2005.4,2005.3,0.99753]
[1742712983169,1.3036,2005.4,2005.3,1.51656442]
[1742712983373,1.3036,2005.4,2005.3,2.84686442]
[1742712986974,1.3036,2005.4,2005.3,2.32783]
[1742712987175,1.3036,2005.4,2005.3,2.84683176]
[1742712987576,1.3036,2005.4,2005.3,6.05466849]
[1742712988073,1.3036,2005.4,2005.3,2.84686849]
[1742712988373,1.3036,2005.4,2005.3,6.05466849]
[1742712989077,1.3036,2005.4,2005.3,6.05471854]
[1742712989274,1.3036,2005.4,2005.3,2.84691854]
[1742712989475,1.3036,2005.4,2005.3,6.05471854]
[1742712991071,1.3036,2005.4,2005.3,5.53563]
[1742712991276,1.3036,2005.4,2005.3,6.05459968]
[1742712991473,3.2078,2005.8,2005.3,5.05706968]
[1742712991776,0.6654,2005.7,2005.6,0.99738]
[1742712991977,0.6654,2005.7,2005.6,1.51634968]
[1742712992381,0.6654,2005.7,2005.6,2.85464968]
[1742712992776,0.6654,2005.7,2005.6,6.06244968]
[1742712992969,0.6654,2005.7,2005.6,6.06197337]
[1742712995683,0.6654,2005.7,2005.6,6.46635961]
[1742712996578,0.6654,2005.7,2005.6,5.94786624]
[1742712996779,0.6654,2005.7,2005.6,6.46586976]
[1742712996984,0.6654,2005.7,2005.6,6.46587006]
[1742712997283,0.6654,2005.7,2005.6,5.94786624]
[1742713003587,1.2849,2005.8,2005.7,0.99733]
[1742713003786,1.9388,2005.8,2005.7,2.26503]
[1742713004696,2.93609,2005.8,2005.6,0.99734]
[1742713004988,1.2853,2005.7,2005.6,0.99734]
[1742713014987,1.2853,2005.7,2005.6,2.37924]
[1742713017498,1.2853,2005.7,2005.6,0.99734]
[1742713017898,1.2853,2005.7,2005.6,0.99738]
[1742713018593,1.2853,2005.7,2005.5,4.20519]
[1742713018799,1.3028,2005.6,2005.5,4.20519]
[1742713019503,1.3028,2005.6,2005.5,4.7241359]
[1742713020693,1.3028,2005.6,2005.5,4.72420714]
[1742713021496,2.6059,2005.6,2005.5,4.72420714]
[1742713021997,2.6059,2005.6,2005.5,4.724265]
[1742713025502,2.6059,2005.6,2005.5,4.20519]
[1742713025705,2.6059,2005.6,2005.5,4.72419949]
[1742713026002,2.6059,2005.6,2005.5,4.72420117]
[1742713026207,2.6059,2005.6,2005.5,4.72419885]
[1742713026811,2.6059,2005.6,2005.5,5.40609885]
[1742713027009,2.6059,2005.6,2005.5,5.40609608]
[1742713027719,2.6059,2005.6,2005.5,5.40610715]
[1742713027920,2.6059,2005.6,2005.5,5.40612251]
[1742713029721,2.6059,2005.6,2005.5,5.4061245]
[1742713031421,2.6059,2005.6,2005.5,5.4061545]
[1742713034214,2.6059,2005.6,2005.5,4.88709]
[1742713036725,2.6059,2005.6,2005.5,5.40628905]
[1742713036918,2.6059,2005.6,2005.5,2.19848905]
[1742713037325,2.6059,2005.6,2005.5,2.83988905]
[1742713039226,2.6059,2005.6,2005.5,4.13948905]
[1742713040325,2.6059,2005.6,2005.5,3.62029]
[1742713040524,2.6059,2005.6,2005.5,4.13957342]
[1742713040827,2.6059,2005.6,2005.5,3.62029]
[1742713041127,2.6059,2005.6,2005.5,4.13957949]
[1742713042419,2.6059,2005.6,2005.5,4.13960695]
[1742713045729,3.60328,2005.6,2005.5,1.81891695]
[1742713045930,3.60328,2005.6,2005.5,1.2996]
[1742713048341,3.60328,2005.6,2005.2,1.2955]
[1742713048342,5.8137,2005.6,2005.2,1.2955]
[1742713048530,0.99753,2005.3,2005.2,0.6473]
[1742713048840,0.99753,2005.3,2005.1,4.20541]
[1742713049239,1.65838,2005.2,2005.1,4.20541]
[1742713049729,1.65838,2005.2,2005.1,5.58781]
[1742713050039,0.6608,2005.2,2005.1,5.58781]
[1742713050435,2.97368,2005.2,2005.1,5.58781]
[1742713051035,2.97368,2005.2,2005.1,4.5902]
[1742713055145,2.97368,2005.2,2005.1,1.3824]
[1742713055934,0.99773,2004.9,2004.8,2.37394]
[1742713056447,0.99772,2005.0,2004.9,0.99772]
[1742713056743,1.67102,2005.0,2004.9,0.99772]
[1742713057140,1.67102,2005.0,2004.9,1.3507]
[1742713057936,2.32762,2005.0,2004.9,1.3507]
[1742713066346,3.67712,2005.0,2004.9,1.3507]
[1742713069755,0.99783,2004.7,2004.6,3.21527831]
[1742713070652,1.67773,2004.7,2004.6,3.21527831]
[1742713071156,3.01483,2004.7,2004.6,4.56367831]
[1742713071450,3.01483,2004.7,2004.6,1.35587831]
[1742713084660,0.99798,2004.4,2004.3,1.3227]
[1742713085556,1.68218,2004.4,2004.3,1.3227]
[1742713086754,0.99808,2004.2,2004.1,0.00747831]
[1742713086960,0.99808,2004.2,2004.1,1.32007831]
[1742713087656,0.99808,2004.2,2004.1,2.61767831]
[1742713094573,1.67858,2004.2,2004.1,2.61767831]
[1742713095565,1.67858,2004.2,2004.1,1.30507831]
[1742713100774,1.67858,2004.2,2004.1,1.96457831]
[1742713113884,1.67858,2004.2,2004.1,1.30507831]
[1742713121997,0.99818,2004.0,2003.9,3.8726]
[1742713123200,1.67458,2004.0,2003.9,3.8726]
[1742713123406,2.98208,2004.0,2003.9,5.1639]
[1742713126810,2.98208,2004.0,2003.9,1.9561]
[1742713127613,0.99818,2004.0,2003.9,1.9561]
[1742713132313,2.37606,2004.1,2003.9,1.9561]
[1742713132622,2.37606,2004.1,2004.0,1.3205]
[1742713132817,0.99816,2004.1,2004.0,1.9525]
[1742713136822,0.99816,2004.1,2004.0,1.3205]
[1742713137214,1.63556,2004.1,2004.0,1.3205]
[1742713138614,0.99828,2003.8,2003.7,3.21527831]
[1742713138815,0.99849,2003.4,2003.2,0.6457]
[1742713139014,0.99849,2003.4,2003.3,0.9985]
[1742713139714,0.6616,2003.6,2003.3,0.9985]
[1742713140019,0.99846,2003.5,2003.4,1.3131]
[1742713140321,0.99846,2003.5,2003.4,2.31158]
[1742713142016,0.99846,2003.5,2003.4,1.3131]
[1742713143321,0.99853,2003.3,2003.2,1.3073]
[1742713143526,0.99852,2003.4,2003.3,0.99853]
[1742713143725,0.99853,2003.3,2003.2,2.30584]
[1742713144023,0.99853,2003.3,2003.2,2.82579531]
[1742713144420,0.99853,2003.3,2003.2,2.30588]
[1742713144615,0.99853,2003.3,2003.2,4.09847583]
[1742713144823,0.99853,2003.3,2003.2,2.5801]
[1742713145327,0.99853,2003.3,2003.2,3.57865]
[1742713147926,0.99853,2003.3,2003.2,2.5801]
[1742713148120,0.99853,2003.3,2003.2,3.57868]
[1742713153833,2.35041,2003.4,2003.3,0.99853]
[1742713154028,2.35041,2003.4,2003.3,1.3913]
[1742713158136,2.98381,2003.4,2003.3,1.3913]
[1742713163233,2.98381,2003.4,2003.3,2.38983]
[1742713164137,2.98381,2003.4,2003.3,1.3913]
[1742713164939,2.98381,2003.4,2003.3,2.38983]
[1742713167237,1.3519,2003.4,2003.3,2.38983]
[1742713167643,0.00747831,2003.6,2003.5,0.99843]
[1742713167846,1.00585831,2003.6,2003.5,0.99843]
[1742713168033,1.00585831,2003.6,2003.5,3.07853]
[1742713168543,0.00747831,2003.6,2003.5,3.07853]
[1742713168928,1.34307831,2003.6,2003.5,3.07853]
[1742713169133,2.34145831,2003.6,2003.5,2.0801]
[1742713170748,2.34145831,2003.6,2003.5,3.07853]
[1742713170938,1.34307831,2003.6,2003.5,3.07853]
[1742713172850,2.34145831,2003.6,2003.5,3.07853]
[1742713174941,1.34307831,2003.6,2003.5,2.0801]
[1742713176149,2.34145831,2003.6,2003.5,3.07853]
[1742713178456,1.34307831,2003.6,2003.5,3.07853]
[1742713184361,2.34145831,2003.6,2003.5,3.07853]
[1742713186268,2.34145831,2003.6,2003.5,2.38953]
[1742713194268,2.34145831,2003.6,2003.5,1.3911]
[1742713195177,2.34145831,2003.6,2003.5,2.38953]
[1742713197374,2.34145831,2003.6,2003.5,2.91059018]
[1742713197674,2.34145831,2003.6,2003.5,2.91059273]
[1742713197865,2.34145831,2003.6,2003.5,1.91216273]
[1742713198777,2.34145831,2003.6,2003.5,0.52106273]
[1742713199180,2.34145831,2003.6,2003.5,0.52112282]
[1742713200973,1.34307831,2003.6,2003.4,1.2678]
[1742713201182,3.59843,2003.5,2003.3,4.897]
[1742713201477,1.294,2003.4,2003.3,6.1638]
[1742713201674,2.29248,2003.4,2003.3,6.68503455]
[1742713201875,1.294,2003.4,2003.3,6.68503455]
[1742713202576,1.294,2003.4,2003.3,6.68501832]
[1742713202779,1.294,2003.4,2003.3,7.32569111]
[1742713203379,1.294,2003.4,2003.3,6.68501832]
[1742713204580,1.294,2003.4,2003.3,7.32563678]
[1742713204985,1.294,2003.4,2003.3,7.32564174]
[1742713207687,0.00747831,2003.6,2003.5,0.99843]
[1742713207889,1.38117831,2003.6,2003.5,1.51963255]
[1742713208089,1.38117831,2003.6,2003.5,2.88063255]
[1742713208489,1.38117831,2003.6,2003.5,2.88065331]
[1742713210786,2.37955831,2003.6,2003.5,2.88065331]
[1742713210986,1.38117831,2003.6,2003.5,2.88065331]
[1742713211785,2.37955831,2003.6,2003.5,2.88065331]
[1742713212185,1.38117831,2003.6,2003.5,2.88065331]
[1742713212686,1.38117831,2003.6,2003.5,2.88069865]
[1742713212887,2.37955831,2003.6,2003.5,2.88069865]
[1742713213194,1.38117831,2003.6,2003.5,2.88069501]
[1742713213696,2.37955831,2003.6,2003.5,2.88069501]
[1742713214497,1.38117831,2003.6,2003.5,2.88069501]
[1742713214697,1.38117831,2003.6,2003.5,2.88069317]
[1742713214899,2.37955831,2003.6,2003.5,2.88069317]
[1742713216294,3.07805831,2003.6,2003.5,2.88069317]
[1742713218100,3.07805831,2003.6,2003.5,1.88226317]
[1742713218604,3.07805831,2003.6,2003.5,1.88240786]
[1742713220804,3.07805831,2003.6,2003.5,1.88241228]
[1742713221204,3.07805831,2003.6,2003.5,0.52145244]
[1742713221397,0.99848,2003.4,2003.3,4.89699]
[1742713221697,2.07967831,2003.6,2003.3,5.99184808]
[1742713221698,2.36446,2003.5,2003.3,5.99184808]
[1742713221903,3.02818,2003.4,2003.3,5.47039]
[1742713222110,3.67768,2003.4,2003.3,5.99185117]
[1742713222501,3.67768,2003.4,2003.3,4.99336117]
[1742713222805,3.67768,2003.4,2003.3,4.99336455]
[1742713224304,3.67768,2003.4,2003.3,5.99189455]
[1742713224607,3.67768,2003.4,2003.3,4.99333962]
[1742713224904,3.67768,2003.4,2003.3,5.99186962]
[1742713226100,3.67768,2003.4,2003.3,4.99333962]
[1742713226807,3.67768,2003.4,2003.3,3.72921603]
[1742713227409,3.67768,2003.4,2003.3,5.08021603]
[1742713228608,3.67768,2003.4,2003.3,5.08019383]
[1742713229009,3.67768,2003.4,2003.3,5.0801901]
[1742713229604,3.67768,2003.4,2003.3,1.8723901]
[1742713229805,3.67768,2003.4,2003.3,5.0801901]
[1742713230712,3.67768,2003.4,2003.3,5.08013121]
[1742713231014,2.6792,2003.4,2003.3,6.07866121]
[1742713231909,3.67768,2003.4,2003.3,6.07866121]
[1742713232108,2.6792,2003.4,2003.3,6.07866121]
[1742713232611,2.6792,2003.4,2003.3,6.07873253]
[1742713233014,3.67768,2003.4,2003.3,6.07873253]
[1742713234713,3.67768,2003.4,2003.3,6.078874]
[1742713235413,2.6792,2003.4,2003.3,6.078874]
[1742713235805,3.67768,2003.4,2003.3,6.078874]
[1742713236710,3.67768,2003.4,2003.3,6.07889655]
[1742713236912,2.6792,2003.4,2003.3,6.07889655]
[1742713237111,2.6792,2003.4,2003.3,6.07889567]
[1742713237307,3.67768,2003.4,2003.3,6.07889567]
[1742713237913,3.67768,2003.4,2003.3,5.08036567]
[1742713238818,3.67768,2003.4,2003.3,5.08045868]
[1742713241221,3.67768,2003.4,2003.3,3.72945868]
[1742713242020,3.67768,2003.4,2003.3,5.10988749]
[1742713242822,3.67768,2003.4,2003.3,5.10988148]
[1742713243423,2.6792,2003.4,2003.3,6.10841148]
[1742713243621,2.0155,2003.4,2003.3,6.10841148]
[1742713244715,2.0155,2003.4,2003.3,6.10844095]
[1742713245223,2.0155,2003.4,2003.3,5.58673]
[1742713245424,2.0155,2003.4,2003.3,6.10845954]
[1742713248827,2.0155,2003.4,2003.3,6.10903219]
[1742713250536,2.0155,2003.4,2003.3,6.10889889]
[1742713250934,2.0155,2003.4,2003.3,6.10890994]
[1742713251538,2.0155,2003.4,2003.3,6.10892139]
[1742713255139,3.01398,2003.4,2003.3,5.11039139]
[1742713255341,2.0155,2003.4,2003.3,6.10892139]
[1742713256938,2.0155,2003.4,2003.3,5.58673]
[1742713257137,2.0155,2003.4,2003.3,6.1089357]
[1742713259136,2.0155,2003.4,2003.3,6.10878512]
[1742713260937,2.0155,2003.4,2003.3,6.10878572]
[1742713264745,2.0155,2003.4,2003.3,5.58673]
[1742713264944,2.0155,2003.4,2003.3,6.1090058]
[1742713272449,2.0155,2003.4,2003.3,6.10899984]
[1742713273745,2.0155,2003.4,2003.3,6.10901412]
[1742713276055,2.0155,2003.4,2003.3,5.58673]
[1742713276949,2.0155,2003.4,2003.3,6.10887801]
[1742713278257,2.0155,2003.4,2003.3,6.10887512]
[1742713279646,2.0155,2003.4,2003.3,2.90107512]
[1742713279859,2.0155,2003.4,2003.3,6.10887512]
[1742713280660,2.0155,2003.4,2003.3,6.10889332]
[1742713283655,1.366,2003.4,2003.3,6.10889332]
[1742713284256,1.366,2003.4,2003.3,6.10891241]
[1742713284656,1.366,2003.4,2003.3,2.90111241]
[1742713284852,1.366,2003.4,2003.3,6.10891241]
[1742713286159,1.366,2003.4,2003.3,5.58673]
[1742713286360,1.366,2003.4,2003.3,6.10887143]
[1742713288262,1.366,2003.4,2003.3,6.10885475]
[1742713288758,1.366,2003.4,2003.3,6.10887792]
[1742713290366,1.366,2003.4,2003.3,6.10887898]
[1742713294261,1.366,2003.4,2003.3,5.58673]
[1742713294463,1.366,2003.4,2003.3,6.1088399]
[1742713296166,1.366,2003.4,2003.3,2.9010399]
[1742713296564,1.366,2003.4,2003.3,6.1088399]
[1742713296762,1.366,2003.4,2003.3,5.58673]
[1742713296967,1.366,2003.4,2003.3,6.10883332]
[1742713298576,1.366,2003.4,2003.3,6.1088424]
[1742713299080,2.038,2003.4,2003.3,6.1088424]
[1742713302179,2.038,2003.4,2003.3,6.10884303]
[1742713302379,2.038,2003.4,2003.3,6.10884194]
[1742713304377,2.038,2003.4,2003.3,6.10883833]
[1742713304682,3.03648,2003.4,2003.3,5.11030852]
[1742713306075,3.03648,2003.4,2003.3,5.11029429]
[1742713307384,3.03648,2003.4,2003.3,1.3804]
[1742713325598,0.99858,2003.2,2003.1,2.31617831]
[1742713325800,0.99858,2003.2,2003.1,2.83782755]
[1742713326299,0.99858,2003.2,2003.1,1.83922755]
[1742713326999,0.99858,2003.2,2003.1,3.19059329]
[1742713328400,2.26376,2003.3,2003.1,4.18922329]
[1742713328593,2.26376,2003.3,2003.2,1.90701498]
[1742713328993,2.26376,2003.3,2003.2,1.3853]
[1742713329192,2.26376,2003.3,2003.2,1.9070636]
[1742713329602,2.26376,2003.3,2003.2,1.90708758]
[1742713333096,2.26376,2003.3,2003.2,1.90731064]
[1742713333698,2.92746,2003.3,2003.2,1.90731064]
[1742713335097,2.92746,2003.3,2003.2,1.90740846]
[1742713337005,2.92746,2003.3,2003.2,1.90746465]
[1742713337405,2.92746,2003.3,2003.2,1.90750454]
[1742713338806,2.92746,2003.3,2003.2,1.90748896]
[1742713339507,2.92746,2003.3,2003.2,1.3853]
[1742713339703,2.92746,2003.3,2003.2,1.90747479]
[1742713340009,2.92746,2003.3,2003.2,1.3853]
[1742713341499,2.92746,2003.3,2003.1,0.00747831]
[1742713341705,2.95128,2003.2,2003.1,1.37627831]
[1742713342505,2.95128,2003.2,2003.1,0.00747831]
[1742713344298,1.312,2003.2,2003.1,1.69410831]
[1742713344504,2.31058,2003.2,2003.1,1.69410831]
[1742713344907,2.31058,2003.2,2003.1,0.69547831]
[1742713345105,2.31058,2003.2,2003.1,0.00747831]
[1742713345304,2.31058,2003.2,2003.1,1.39797831]
[1742713345509,2.94308,2003.2,2003.1,1.39797831]
[1742713348208,2.94308,2003.2,2003.1,0.00747831]
[1742713351415,2.94308,2003.2,2003.1,1.30937831]
[1742713364029,2.94308,2003.2,2003.1,0.00747831]
[1742713369726,6.15088,2003.2,2003.1,0.00747831]
[1742713370226,2.94308,2003.2,2003.1,0.00747831]
[1742713370522,3.2078,2003.5,2003.1,0.52957835]
[1742713370716,1.3255,2003.5,2003.2,5.143]
[1742713370916,0.99853,2003.4,2003.3,1.82302508]
[1742713371113,0.99853,2003.4,2003.3,1.3011]
[1742713372229,0.00747831,2003.6,2003.3,1.3011]
[1742713372418,0.99848,2003.4,2003.3,1.3011]
[1742713374329,0.99848,2003.4,2003.3,2.29963]
[1742713375225,2.28126,2003.5,2003.4,0.99848]
[1742713375530,2.28126,2003.5,2003.4,1.3061]
[1742713375730,1.2828,2003.5,2003.4,2.30458]
[1742713375919,1.29027831,2003.6,2003.4,1.3061]
[1742713376117,2.28868831,2003.6,2003.5,3.60823]
[1742713377429,2.28868831,2003.6,2003.5,2.6098]
[1742713378725,2.28868831,2003.6,2003.5,3.60823]
[1742713379427,2.28868831,2003.6,2003.5,2.6098]
[1742713379826,2.95848831,2003.6,2003.5,2.6098]
[1742713380736,2.28868831,2003.6,2003.5,3.60823]